[Event "Late-Titled-Tuesday-Blitz-September-19-2023"]
[Site "Chess.com"]
[Date "2023.09.19"]
[Round "3"]
[White "PawnEatingZombie"]
[Black "sebastianmarinp"]
[Result "0-1"]
[WhiteElo "2194"]
[BlackElo "2399"]
[TimeControl "180+1"]
[EndTime "14:27:55 PDT"]
[Termination "sebastianmarinp won on time"]

1. e4 {[%clk 0:02:55]} 1... e6 {[%clk 0:02:59.7]} 2. d4 {[%clk 0:02:52.3]} 2...
d5 {[%clk 0:03:00.2]} 3. e5 {[%clk 0:02:52]} 3... c5 {[%clk 0:02:59.9]} 4. c3
{[%clk 0:02:52.6]} 4... Qb6 {[%clk 0:03:00.1]} 5. Nf3 {[%clk 0:02:52.7]} 5...
Nc6 {[%clk 0:03:00.1]} 6. Bd3 {[%clk 0:02:53.1]} 6... cxd4 {[%clk 0:02:59]} 7.
O-O {[%clk 0:02:53]} 7... Bd7 {[%clk 0:02:57]} 8. Re1 {[%clk 0:02:52.1]} 8...
Nge7 {[%clk 0:02:54.7]} 9. h4 {[%clk 0:02:51.4]} 9... Nf5 {[%clk 0:02:41]} 10.
Bxf5 {[%clk 0:02:29.8]} 10... exf5 {[%clk 0:02:41.9]} 11. cxd4 {[%clk
0:02:29.8]} 11... Be7 {[%clk 0:02:37.5]} 12. Nc3 {[%clk 0:02:29.1]} 12... Be6
{[%clk 0:02:36.5]} 13. Ne2 {[%clk 0:02:11.4]} 13... Qd8 {[%clk 0:02:28.7]} 14.
h5 {[%clk 0:02:04.1]} 14... O-O {[%clk 0:02:14.6]} 15. Nf4 {[%clk 0:02:04]}
15... Rc8 {[%clk 0:02:06.2]} 16. Bd2 {[%clk 0:02:00.6]} 16... Na5 {[%clk
0:01:57.7]} 17. b3 {[%clk 0:01:47.6]} 17... Nc6 {[%clk 0:01:53]} 18. Re3 {[%clk
0:01:38.9]} 18... Rc7 {[%clk 0:01:39.7]} 19. g3 {[%clk 0:01:16.6]} 19... Bb4
{[%clk 0:01:31.6]} 20. Kg2 {[%clk 0:01:15.6]} 20... Qe7 {[%clk 0:01:28.6]} 21.
Nh4 {[%clk 0:01:08.4]} 21... Rfc8 {[%clk 0:01:21.2]} 22. Bc1 {[%clk 0:00:56.3]}
22... Nd8 {[%clk 0:01:02.5]} 23. Bb2 {[%clk 0:00:55.8]} 23... Bc3 {[%clk
0:00:54.5]} 24. Bxc3 {[%clk 0:00:54.9]} 24... Rxc3 {[%clk 0:00:55.4]} 25. Rxc3
{[%clk 0:00:54.9]} 25... Rxc3 {[%clk 0:00:56.1]} 26. Rc1 {[%clk 0:00:44.1]}
26... Qc7 {[%clk 0:00:55.4]} 27. Nd3 {[%clk 0:00:37.9]} 27... h6 {[%clk
0:00:37.5]} 28. Nc5 {[%clk 0:00:35]} 28... Rxc1 {[%clk 0:00:37]} 29. Qxc1 {[%clk
0:00:35.2]} 29... b6 {[%clk 0:00:30.8]} 30. Nd3 {[%clk 0:00:34.8]} 30... Qe7
{[%clk 0:00:26.6]} 31. Nf4 {[%clk 0:00:27.9]} 31... Qd7 {[%clk 0:00:18.2]} 32.
Nf3 {[%clk 0:00:26.7]} 32... Nc6 {[%clk 0:00:17.7]} 33. Qc3 {[%clk 0:00:25]}
33... Kf8 {[%clk 0:00:17.3]} 34. a4 {[%clk 0:00:24.2]} 34... Ke8 {[%clk
0:00:17]} 35. Ne1 {[%clk 0:00:21]} 35... Kd8 {[%clk 0:00:16.5]} 36. Ned3 {[%clk
0:00:21.1]} 36... Ne7 {[%clk 0:00:13.3]} 37. Nb4 {[%clk 0:00:14.7]} 37... a5
{[%clk 0:00:12.7]} 38. Nbd3 {[%clk 0:00:14.3]} 38... Nc6 {[%clk 0:00:12.4]} 39.
b4 {[%clk 0:00:13.4]} 39... axb4 {[%clk 0:00:10.9]} 40. Nxb4 {[%clk 0:00:14.3]}
40... Na5 {[%clk 0:00:09.9]} 41. Nbd3 {[%clk 0:00:09.6]} 41... Nc4 {[%clk
0:00:09.6]} 42. Qb4 {[%clk 0:00:07.8]} 42... Qe7 {[%clk 0:00:08.5]} 43. Qb5
{[%clk 0:00:06.2]} 43... Qd7 {[%clk 0:00:07.9]} 44. Qa6 {[%clk 0:00:05.2]} 44...
Qc8 {[%clk 0:00:07.9]} 45. Qb5 {[%clk 0:00:05]} 45... Qd7 {[%clk 0:00:07.5]} 46.
Qa6 {[%clk 0:00:05.4]} 46... Ke7 {[%clk 0:00:07.6]} 47. Qb5 {[%clk 0:00:05.6]}
47... Qxb5 {[%clk 0:00:06.6]} 48. axb5 {[%clk 0:00:06.5]} 48... Na3 {[%clk
0:00:06.6]} 49. Nb4 {[%clk 0:00:06.5]} 49... Nxb5 {[%clk 0:00:06.8]} 50. Nbxd5+
{[%clk 0:00:06.6]} 50... Bxd5+ {[%clk 0:00:07.1]} 51. Nxd5+ {[%clk 0:00:07.5]}
51... Ke6 {[%clk 0:00:07.4]} 52. Nxb6 {[%clk 0:00:08.3]} 52... Nxd4 {[%clk
0:00:07.7]} 53. f4 {[%clk 0:00:06.8]} 53... Nc6 {[%clk 0:00:07.5]} 54. Nc4
{[%clk 0:00:06.8]} 54... Ne7 {[%clk 0:00:07.5]} 55. Nd6 {[%clk 0:00:06.7]} 55...
g6 {[%clk 0:00:06.6]} 56. hxg6 {[%clk 0:00:06.5]} 56... fxg6 {[%clk 0:00:07.1]}
57. Kf3 {[%clk 0:00:06.9]} 57... g5 {[%clk 0:00:07.1]} 58. fxg5 {[%clk
0:00:06.8]} 58... hxg5 {[%clk 0:00:08]} 59. Nc4 {[%clk 0:00:05.3]} 59... Ng6
{[%clk 0:00:07.6]} 60. Ke3 {[%clk 0:00:03.2]} 60... Nxe5 {[%clk 0:00:07.6]} 61.
Nd2 {[%clk 0:00:01.7]} 61... Ng4+ {[%clk 0:00:07.6]} 62. Kf3 {[%clk 0:00:02.2]}
62... Ne5+ {[%clk 0:00:08.4]} 63. Ke3 {[%clk 0:00:02.5]} 63... Kd5 {[%clk
0:00:08.8]} 64. Nf1 {[%clk 0:00:01.3]} 64... Nc4+ {[%clk 0:00:08.9]} 0-1

[Event "Late-Titled-Tuesday-Blitz-September-19-2023"]
[Site "Chess.com"]
[Date "2023.09.19"]
[Round "3"]
[White "elpatodice"]
[Black "OYAcosta"]
[Result "0-1"]
[WhiteElo "2363"]
[BlackElo "2177"]
[TimeControl "180+1"]
[EndTime "14:27:57 PDT"]
[Termination "OYAcosta won by checkmate"]

1. e4 {[%clk 0:02:36]} 1... c6 {[%clk 0:03:00.1]} 2. d4 {[%clk 0:02:36]} 2... d5
{[%clk 0:03:00.4]} 3. Nd2 {[%clk 0:02:36.6]} 3... dxe4 {[%clk 0:03:00.1]} 4.
Nxe4 {[%clk 0:02:37.5]} 4... Bf5 {[%clk 0:03:00.5]} 5. Ng3 {[%clk 0:02:37.8]}
5... Bg6 {[%clk 0:03:00.5]} 6. h4 {[%clk 0:02:38.5]} 6... h6 {[%clk 0:02:57.6]}
7. Nf3 {[%clk 0:02:39]} 7... Nd7 {[%clk 0:02:57.6]} 8. h5 {[%clk 0:02:39.5]}
8... Bh7 {[%clk 0:02:58.3]} 9. Bd3 {[%clk 0:02:40.2]} 9... Bxd3 {[%clk
0:02:59.1]} 10. Qxd3 {[%clk 0:02:41]} 10... Ngf6 {[%clk 0:02:59.7]} 11. Bf4
{[%clk 0:02:41.5]} 11... Qa5+ {[%clk 0:02:59.5]} 12. Bd2 {[%clk 0:02:42.1]}
12... Qc7 {[%clk 0:02:59.6]} 13. O-O-O {[%clk 0:02:42.1]} 13... e6 {[%clk
0:03:00.3]} 14. Kb1 {[%clk 0:02:42.6]} 14... O-O-O {[%clk 0:02:59.9]} 15. Qe2
{[%clk 0:02:38.9]} 15... Kb8 {[%clk 0:02:58.6]} 16. Ne5 {[%clk 0:02:38.6]} 16...
Nxe5 {[%clk 0:02:56.7]} 17. dxe5 {[%clk 0:02:39.5]} 17... Nd7 {[%clk 0:02:54.2]}
18. f4 {[%clk 0:02:39]} 18... Ka8 {[%clk 0:02:53.8]} 19. Ne4 {[%clk 0:02:36.8]}
19... Nc5 {[%clk 0:02:51.4]} 20. Nxc5 {[%clk 0:02:30.9]} 20... Bxc5 {[%clk
0:02:51.3]} 21. Bc1 {[%clk 0:02:31.6]} 21... Rd5 {[%clk 0:02:46.1]} 22. c4
{[%clk 0:02:28.9]} 22... Rdd8 {[%clk 0:02:45.9]} 23. g4 {[%clk 0:02:28.4]} 23...
Bd4 {[%clk 0:02:40.2]} 24. Be3 {[%clk 0:02:22.3]} 24... Qb6 {[%clk 0:02:33]} 25.
Bxd4 {[%clk 0:02:21.3]} 25... Rxd4 {[%clk 0:02:32.9]} 26. Rxd4 {[%clk
0:02:19.3]} 26... Qxd4 {[%clk 0:02:33]} 27. Rd1 {[%clk 0:02:11.6]} 27... Qxf4
{[%clk 0:02:32.6]} 28. Rd7 {[%clk 0:02:11.2]} 28... Rc8 {[%clk 0:02:25.2]} 29.
a3 {[%clk 0:02:03.9]} 29... f6 {[%clk 0:02:15.5]} 30. exf6 {[%clk 0:01:54.8]}
30... Qxf6 {[%clk 0:02:15.4]} 31. Rd6 {[%clk 0:01:39.8]} 31... Re8 {[%clk
0:02:13.1]} 32. c5 {[%clk 0:01:27.1]} 32... Qf7 {[%clk 0:02:03.4]} 33. Qd3
{[%clk 0:01:18.4]} 33... e5 {[%clk 0:01:59.2]} 34. Rd7 {[%clk 0:01:16.9]} 34...
Qf6 {[%clk 0:01:55.9]} 35. Qd6 {[%clk 0:01:07.7]} 35... Qf1+ {[%clk 0:01:44.3]}
36. Kc2 {[%clk 0:01:06.2]} 36... Qc4+ {[%clk 0:01:43.7]} 37. Kd2 {[%clk
0:01:06.6]} 37... Qf4+ {[%clk 0:01:41.9]} 38. Kd3 {[%clk 0:01:05.7]} 38... e4+
{[%clk 0:01:41]} 39. Kc2 {[%clk 0:01:03.7]} 39... Qg5 {[%clk 0:01:26.7]} 40. Qc7
{[%clk 0:00:58.5]} 40... Rb8 {[%clk 0:01:17.5]} 41. b4 {[%clk 0:00:55.5]} 41...
a6 {[%clk 0:01:11.4]} 42. Rxg7 {[%clk 0:00:54.5]} 42... Qd5 {[%clk 0:01:07.2]}
43. Kb2 {[%clk 0:00:41]} 43... Qd2+ {[%clk 0:01:05.5]} 44. Kb3 {[%clk
0:00:41.5]} 44... Qd1+ {[%clk 0:01:04.9]} 45. Kb2 {[%clk 0:00:41.5]} 45... Qd3
{[%clk 0:01:04.1]} 46. Rd7 {[%clk 0:00:40.9]} 46... Qe2+ {[%clk 0:01:00.2]} 47.
Kb3 {[%clk 0:00:41.4]} 47... Qxg4 {[%clk 0:00:42.2]} 48. Rd8 {[%clk 0:00:38.2]}
48... Rxd8 {[%clk 0:00:38]} 49. Qxd8+ {[%clk 0:00:38.5]} 49... Ka7 {[%clk
0:00:38.1]} 50. Qb6+ {[%clk 0:00:38.3]} 50... Kb8 {[%clk 0:00:38.8]} 51. Qd8+
{[%clk 0:00:38.9]} 51... Qc8 {[%clk 0:00:38.9]} 52. Qd6+ {[%clk 0:00:38.3]}
52... Ka8 {[%clk 0:00:39.3]} 53. Qxh6 {[%clk 0:00:38.5]} 53... Qe8 {[%clk
0:00:34.9]} 54. Qg6 {[%clk 0:00:34.7]} 54... Qe5 {[%clk 0:00:27.2]} 55. Qg8+
{[%clk 0:00:23.1]} 55... Ka7 {[%clk 0:00:26.8]} 56. h6 {[%clk 0:00:23.8]} 56...
e3 {[%clk 0:00:10]} 57. h7 {[%clk 0:00:23.8]} 57... e2 {[%clk 0:00:09.9]} 58.
h8=Q {[%clk 0:00:24.1]} 58... Qe3+ {[%clk 0:00:09.9]} 59. Qc3 {[%clk 0:00:22.3]}
59... Qxc3+ {[%clk 0:00:09.4]} 60. Kxc3 {[%clk 0:00:22.8]} 60... e1=Q+ {[%clk
0:00:10.2]} 61. Kb3 {[%clk 0:00:23.4]} 61... Qd1+ {[%clk 0:00:10.2]} 62. Kb2
{[%clk 0:00:22.9]} 62... Qd2+ {[%clk 0:00:10.2]} 63. Kb3 {[%clk 0:00:23.4]}
63... Qd3+ {[%clk 0:00:10.4]} 64. Kb2 {[%clk 0:00:23.3]} 64... Qb5 {[%clk
0:00:09.4]} 65. Qg2 {[%clk 0:00:20.1]} 65... a5 {[%clk 0:00:09.3]} 66. Qd2
{[%clk 0:00:20]} 66... Ka6 {[%clk 0:00:08.3]} 67. Qc3 {[%clk 0:00:19.4]} 67...
Qe2+ {[%clk 0:00:08.3]} 68. Kb3 {[%clk 0:00:19.7]} 68... Qd1+ {[%clk 0:00:08.2]}
69. Kc4 {[%clk 0:00:18.6]} 69... Qd5# {[%clk 0:00:08.1]} 0-1

[Event "Late-Titled-Tuesday-Blitz-September-19-2023"]
[Site "Chess.com"]
[Date "2023.09.19"]
[Round "3"]
[White "IvanRadivojevic"]
[Black "SRob2003"]
[Result "1-0"]
[WhiteElo "2503"]
[BlackElo "2616"]
[TimeControl "180+1"]
[EndTime "14:28:03 PDT"]
[Termination "IvanRadivojevic won by checkmate"]

1. e4 {[%clk 0:03:00.9]} 1... c6 {[%clk 0:02:54.2]} 2. d4 {[%clk 0:03:00.1]}
2... d5 {[%clk 0:02:55.1]} 3. exd5 {[%clk 0:03:00.6]} 3... cxd5 {[%clk
0:02:54.2]} 4. c4 {[%clk 0:03:01.2]} 4... Nf6 {[%clk 0:02:54.1]} 5. Nc3 {[%clk
0:03:01.8]} 5... Nc6 {[%clk 0:02:54]} 6. Nf3 {[%clk 0:03:01.7]} 6... g6 {[%clk
0:02:53.8]} 7. Bg5 {[%clk 0:02:50.3]} 7... Be6 {[%clk 0:02:52]} 8. Bxf6 {[%clk
0:02:43.6]} 8... exf6 {[%clk 0:02:52.9]} 9. Be2 {[%clk 0:02:43.5]} 9... Bg7
{[%clk 0:02:49.5]} 10. O-O {[%clk 0:02:43.5]} 10... O-O {[%clk 0:02:49.7]} 11.
Re1 {[%clk 0:02:36.7]} 11... Re8 {[%clk 0:02:49.1]} 12. h3 {[%clk 0:02:33.2]}
12... Qd7 {[%clk 0:02:42.7]} 13. Bf1 {[%clk 0:02:24.8]} 13... Rad8 {[%clk
0:02:39.1]} 14. c5 {[%clk 0:02:25]} 14... f5 {[%clk 0:02:09.9]} 15. Qd2 {[%clk
0:02:23.9]} 15... Re7 {[%clk 0:02:04]} 16. a3 {[%clk 0:02:23.4]} 16... Na5
{[%clk 0:01:56]} 17. Qc2 {[%clk 0:02:18.5]} 17... Nc6 {[%clk 0:01:53.1]} 18. Qd2
{[%clk 0:02:11.6]} 18... Rde8 {[%clk 0:01:44.2]} 19. b4 {[%clk 0:02:09.8]} 19...
Qd8 {[%clk 0:01:42.4]} 20. Nb5 {[%clk 0:02:06.8]} 20... Bd7 {[%clk 0:01:35.6]}
21. Nd6 {[%clk 0:02:06.6]} 21... Rxe1 {[%clk 0:01:35.1]} 22. Rxe1 {[%clk
0:02:06.7]} 22... Rxe1 {[%clk 0:01:34.5]} 23. Qxe1 {[%clk 0:02:07.2]} 23... Qc7
{[%clk 0:01:19.6]} 24. Ng5 {[%clk 0:01:50.6]} 24... Bf6 {[%clk 0:00:16.3]} 25.
Ngxf7 {[%clk 0:01:47.4]} 25... Nxd4 {[%clk 0:00:16.5]} 26. Ne8 {[%clk 0:01:25]}
26... Bxe8 {[%clk 0:00:08.7]} 27. Qxe8+ {[%clk 0:01:25.9]} 27... Kg7 {[%clk
0:00:08.9]} 28. Nd6 {[%clk 0:01:25.9]} 28... Qe7 {[%clk 0:00:05.1]} 29. Qxe7+
{[%clk 0:01:25.2]} 29... Bxe7 {[%clk 0:00:06]} 30. Nxb7 {[%clk 0:01:25.5]} 30...
Kf6 {[%clk 0:00:05.3]} 31. Bd3 {[%clk 0:01:20]} 31... Ke6 {[%clk 0:00:04.2]} 32.
b5 {[%clk 0:01:06.6]} 32... Nb3 {[%clk 0:00:04.3]} 33. c6 {[%clk 0:01:05.3]}
33... Bxa3 {[%clk 0:00:02.8]} 34. Kf1 {[%clk 0:00:57.2]} 34... Nc5 {[%clk
0:00:02.8]} 35. Ke2 {[%clk 0:00:26.8]} 35... Ke7 {[%clk 0:00:01.5]} 36. Na5
{[%clk 0:00:25]} 36... Ne4 {[%clk 0:00:01.7]} 37. Nb3 {[%clk 0:00:21.4]} 37...
Kd6 {[%clk 0:00:01.6]} 38. Nd4 {[%clk 0:00:20.2]} 38... Bc5 {[%clk 0:00:02.2]}
39. Bxe4 {[%clk 0:00:17.8]} 39... dxe4 {[%clk 0:00:02.3]} 40. Nb3 {[%clk
0:00:17.5]} 40... Bb6 {[%clk 0:00:02.6]} 41. f3 {[%clk 0:00:18.2]} 41... Kd5
{[%clk 0:00:03]} 42. fxe4+ {[%clk 0:00:18.4]} 42... fxe4 {[%clk 0:00:03.8]} 43.
Nd2 {[%clk 0:00:18.4]} 43... Kd4 {[%clk 0:00:03.5]} 44. g4 {[%clk 0:00:15.1]}
44... h5 {[%clk 0:00:03.2]} 45. gxh5 {[%clk 0:00:15.1]} 45... gxh5 {[%clk
0:00:04.1]} 46. Nf1 {[%clk 0:00:14.8]} 46... Kc5 {[%clk 0:00:03.5]} 47. Ng3
{[%clk 0:00:15.1]} 47... Kxb5 {[%clk 0:00:03.8]} 48. Nxh5 {[%clk 0:00:15.4]}
48... Kxc6 {[%clk 0:00:04.3]} 49. Nf6 {[%clk 0:00:15.7]} 49... e3 {[%clk
0:00:03.1]} 50. h4 {[%clk 0:00:16.2]} 50... Bd4 {[%clk 0:00:02.6]} 51. Ng4
{[%clk 0:00:12.9]} 51... a5 {[%clk 0:00:01.8]} 52. Nxe3 {[%clk 0:00:13.5]} 52...
a4 {[%clk 0:00:02.2]} 53. Nc2 {[%clk 0:00:13]} 53... Kc5 {[%clk 0:00:01.2]} 54.
Kd3 {[%clk 0:00:13]} 54... Bf6 {[%clk 0:00:01.2]} 55. h5 {[%clk 0:00:11.8]}
55... Kb5 {[%clk 0:00:01.9]} 56. h6 {[%clk 0:00:11.4]} 56... Ka5 {[%clk
0:00:02.5]} 57. Kc4 {[%clk 0:00:10.8]} 57... Be5 {[%clk 0:00:02.2]} 58. h7
{[%clk 0:00:11.1]} 58... Bh8 {[%clk 0:00:02.8]} 59. Na3 {[%clk 0:00:09.9]} 59...
Bg7 {[%clk 0:00:03.3]} 60. Nb5 {[%clk 0:00:10.1]} 60... Bh8 {[%clk 0:00:03.7]}
61. Nc3 {[%clk 0:00:10.6]} 61... Bg7 {[%clk 0:00:03.3]} 62. Ne4 {[%clk
0:00:10.5]} 62... Bh8 {[%clk 0:00:03.8]} 63. Ng5 {[%clk 0:00:10.6]} 63... Bb2
{[%clk 0:00:03.5]} 64. Ne6 {[%clk 0:00:10.9]} 64... a3 {[%clk 0:00:03.7]} 65.
Nd4 {[%clk 0:00:11]} 65... Ka4 {[%clk 0:00:02]} 66. h8=Q {[%clk 0:00:10.3]}
66... a2 {[%clk 0:00:01.7]} 67. Qa8# {[%clk 0:00:10.3]} 1-0

[Event "Late-Titled-Tuesday-Blitz-September-19-2023"]
[Site "Chess.com"]
[Date "2023.09.19"]
[Round "3"]
[White "Haykoooo0o"]
[Black "Alexei_Gubajdullin"]
[Result "0-1"]
[WhiteElo "2466"]
[BlackElo "2639"]
[TimeControl "180+1"]
[EndTime "14:28:05 PDT"]
[Termination "Alexei_Gubajdullin won on time"]

1. d4 {[%clk 0:02:55.4]} 1... Nf6 {[%clk 0:02:58.7]} 2. Nf3 {[%clk 0:02:55.9]}
2... g6 {[%clk 0:02:58.9]} 3. Bf4 {[%clk 0:02:56]} 3... Bg7 {[%clk 0:02:58.9]}
4. h3 {[%clk 0:02:56.8]} 4... O-O {[%clk 0:02:59.2]} 5. e3 {[%clk 0:02:57.5]}
5... d6 {[%clk 0:02:59.9]} 6. c3 {[%clk 0:02:58.2]} 6... Nc6 {[%clk 0:03:00.5]}
7. Be2 {[%clk 0:02:58.9]} 7... Nd7 {[%clk 0:03:00.9]} 8. O-O {[%clk 0:02:59.5]}
8... e5 {[%clk 0:03:01.3]} 9. Bh2 {[%clk 0:03:00.4]} 9... f5 {[%clk 0:03:01.6]}
10. Na3 {[%clk 0:03:00.3]} 10... g5 {[%clk 0:03:01.2]} 11. Nc4 {[%clk
0:02:58.8]} 11... f4 {[%clk 0:02:59.6]} 12. exf4 {[%clk 0:02:58.8]} 12... exf4
{[%clk 0:02:56.2]} 13. Bd3 {[%clk 0:02:57.8]} 13... h5 {[%clk 0:02:49.2]} 14.
Qe2 {[%clk 0:02:27.5]} 14... g4 {[%clk 0:02:46.6]} 15. hxg4 {[%clk 0:02:20.7]}
15... hxg4 {[%clk 0:02:46.4]} 16. Qe6+ {[%clk 0:02:20.6]} 16... Rf7 {[%clk
0:02:46.6]} 17. Bg6 {[%clk 0:01:54.7]} 17... Nde5 {[%clk 0:02:46.4]} 18. Bxf7+
{[%clk 0:01:51.3]} 18... Nxf7 {[%clk 0:02:38.6]} 19. Qd5 {[%clk 0:01:25.3]}
19... Ne7 {[%clk 0:02:24.9]} 20. Qh5 {[%clk 0:00:55.9]} 20... gxf3 {[%clk
0:02:24.1]} 21. Qxf3 {[%clk 0:00:55.7]} 21... Ng6 {[%clk 0:02:23.3]} 22. Bxf4
{[%clk 0:00:54.3]} 22... Qf6 {[%clk 0:02:14]} 23. Bg3 {[%clk 0:00:41.3]} 23...
Qxf3 {[%clk 0:02:13.5]} 24. gxf3 {[%clk 0:00:42.2]} 24... Ng5 {[%clk 0:02:10.2]}
25. Nd2 {[%clk 0:00:40.3]} 25... Bh6 {[%clk 0:02:05.8]} 26. f4 {[%clk
0:00:34.6]} 26... Nh3+ {[%clk 0:02:05.5]} 27. Kg2 {[%clk 0:00:34.4]} 27...
Nhxf4+ {[%clk 0:02:05.5]} 28. Bxf4 {[%clk 0:00:34.2]} 28... Nxf4+ {[%clk
0:02:03.6]} 29. Kf3 {[%clk 0:00:34.5]} 29... Nd3 {[%clk 0:02:00.3]} 30. Nc4
{[%clk 0:00:26.4]} 30... Be6 {[%clk 0:01:55.9]} 31. b3 {[%clk 0:00:20.3]} 31...
Bd5+ {[%clk 0:01:52.3]} 32. Ke2 {[%clk 0:00:19.8]} 32... Nf4+ {[%clk 0:01:52]}
33. Kd1 {[%clk 0:00:18.7]} 33... Bf3+ {[%clk 0:01:37.4]} 34. Kc2 {[%clk
0:00:17.8]} 34... Be4+ {[%clk 0:01:37.5]} 35. Kb2 {[%clk 0:00:17]} 35... Nd3+
{[%clk 0:01:37.3]} 36. Ka3 {[%clk 0:00:17.5]} 36... d5 {[%clk 0:01:37.2]} 37.
Ne3 {[%clk 0:00:17.3]} 37... Bf8+ {[%clk 0:01:36.7]} 38. b4 {[%clk 0:00:17.5]}
38... a5 {[%clk 0:01:36.9]} 39. Kb3 {[%clk 0:00:15.2]} 39... axb4 {[%clk
0:01:28]} 40. f3 {[%clk 0:00:12.9]} 40... Ra3+ {[%clk 0:01:24.6]} 41. Kc2 {[%clk
0:00:13.4]} 41... Rxc3+ {[%clk 0:01:15.3]} 42. Kd2 {[%clk 0:00:13.2]} 42... Bh7
{[%clk 0:01:15.2]} 43. Nxd5 {[%clk 0:00:12.8]} 43... Bh6+ {[%clk 0:01:09.4]} 44.
f4 {[%clk 0:00:11.6]} 44... Ra3 {[%clk 0:01:07.6]} 45. Nf6+ {[%clk 0:00:10.2]}
45... Kg7 {[%clk 0:01:05.6]} 46. Nxh7 {[%clk 0:00:09.4]} 46... Kxh7 {[%clk
0:01:02.3]} 47. Rf3 {[%clk 0:00:06.8]} 47... Bxf4+ {[%clk 0:00:58.6]} 48. Ke2
{[%clk 0:00:07.3]} 48... Nc1+ {[%clk 0:00:58.3]} 49. Rxc1 {[%clk 0:00:05.8]}
49... Bxc1 {[%clk 0:00:57.3]} 50. Rf7+ {[%clk 0:00:05.9]} 50... Kg6 {[%clk
0:00:55.6]} 51. Rxc7 {[%clk 0:00:06.8]} 51... Rxa2+ {[%clk 0:00:55]} 52. Kd3
{[%clk 0:00:06.2]} 52... Rd2+ {[%clk 0:00:43.7]} 53. Ke4 {[%clk 0:00:04.4]}
53... Bb2 {[%clk 0:00:41.2]} 54. Rxb7 {[%clk 0:00:02.5]} 54... Rxd4+ {[%clk
0:00:40.6]} 55. Ke3 {[%clk 0:00:03.1]} 55... Bc3 {[%clk 0:00:36.5]} 56. Rc7
{[%clk 0:00:02.5]} 56... Rh4 {[%clk 0:00:34.6]} 57. Rb7 {[%clk 0:00:02.4]} 57...
Kf5 {[%clk 0:00:34.2]} 58. Kd3 {[%clk 0:00:02.9]} 58... Ke6 {[%clk 0:00:33.9]}
59. Kc2 {[%clk 0:00:03.2]} 59... Kd5 {[%clk 0:00:33.2]} 60. Kb3 {[%clk
0:00:03.8]} 60... Rh3 {[%clk 0:00:32.3]} 61. Rd7+ {[%clk 0:00:04]} 61... Kc6
{[%clk 0:00:32.3]} 62. Rd1 {[%clk 0:00:04.4]} 62... Kc5 {[%clk 0:00:30.2]} 63.
Rf1 {[%clk 0:00:03.1]} 63... Bd4+ {[%clk 0:00:29.9]} 64. Kc2 {[%clk 0:00:03.2]}
64... b3+ {[%clk 0:00:29.4]} 65. Kb1 {[%clk 0:00:03.3]} 65... b2 {[%clk
0:00:28.8]} 66. Rd1 {[%clk 0:00:03.3]} 66... Ra3 {[%clk 0:00:26.6]} 67. Rc1+
{[%clk 0:00:01.5]} 67... Kd5 {[%clk 0:00:22.4]} 68. Rc5+ {[%clk 0:00:01.2]}
68... Kxc5 {[%clk 0:00:21.6]} 0-1